[Event "Titled Tuesday Blitz May 03 Late 2022"]
[White "Melkumyan, Hrant"]
[Black "Nakamura, Hikaru"]
[WhiteFideId "13302485"]
[BlackFideId "2016192"]
[WhiteElo "2604"]
[BlackElo "2850"]
[Result "1-0"]
[Round "05"]
[TimeControl "180+1"]
[Date "2022.05.03"]
[WhiteClock "0:00:11"]
[BlackClock "0:00:08"]

1. d4 {[%clk 0:03:00]}  f5 {[%clk 0:02:56]} 2. Nc3 {[%clk 0:03:00]}  Nf6 {[%clk 0:02:54]} 3. Bg5 {[%clk 0:03:00]}  c6 {[%clk 0:02:54]} 4. e3 {[%clk 0:02:55]}  d6 {[%clk 0:02:50]} 5. Bd3 {[%clk 0:02:51]}  g6 {[%clk 0:02:48]} 6. Bxf6 {[%clk 0:02:42]}  exf6 {[%clk 0:02:49]} 7. h4 {[%clk 0:02:43]}  h5 {[%clk 0:02:47]} 8. Nh3 {[%clk 0:02:42]}  Bh6 {[%clk 0:02:47]} 9. Qf3 {[%clk 0:02:37]}  Be6 {[%clk 0:02:43]} 10. Nf4 {[%clk 0:02:25]}  Bf7 {[%clk 0:02:43]} 11. O-O {[%clk 0:02:18]}  d5 {[%clk 0:02:39]} 12. b4 {[%clk 0:02:07]}  Nd7 {[%clk 0:02:35]} 13. a4 {[%clk 0:02:06]}  Qe7 {[%clk 0:02:27]} 14. Rab1 {[%clk 0:01:59]}  a6 {[%clk 0:02:26]} 15. a5 {[%clk 0:01:56]}  O-O {[%clk 0:02:24]} 16. Na4 {[%clk 0:01:57]}  Kh8 {[%clk 0:02:22]} 17. Nc5 {[%clk 0:01:56]}  Rab8 {[%clk 0:02:16]} 18. Rfc1 {[%clk 0:01:52]}  Rfd8 {[%clk 0:01:43]} 19. c4 {[%clk 0:01:51]}  Ne5 {[%clk 0:01:24]} 20. dxe5 {[%clk 0:01:40]}  fxe5 {[%clk 0:01:24]} 21. Ne2 {[%clk 0:00:34]}  e4 {[%clk 0:01:23]} 22. Qg3 {[%clk 0:00:34]}  exd3 {[%clk 0:01:22]} 23. Nxd3 {[%clk 0:00:35]}  dxc4 {[%clk 0:01:18]} 24. Ndf4 {[%clk 0:00:35]}  Kh7 {[%clk 0:01:16]} 25. Rxc4 {[%clk 0:00:34]}  Bg7 {[%clk 0:01:09]} 26. Rcc1 {[%clk 0:00:31]}  Rd6 {[%clk 0:01:09]} 27. Nh3 {[%clk 0:00:31]}  Bf6 {[%clk 0:01:04]} 28. Ng5+ {[%clk 0:00:30]}  Bxg5 {[%clk 0:01:05]} 29. hxg5 {[%clk 0:00:29]}  Rbd8 {[%clk 0:01:05]} 30. Nd4 {[%clk 0:00:26]}  Rd5 {[%clk 0:01:06]} 31. Rc5 {[%clk 0:00:23]}  R8d7 {[%clk 0:01:01]} 32. Rbc1 {[%clk 0:00:24]}  R5d6 {[%clk 0:01:00]} 33. Qf4 {[%clk 0:00:24]}  Bd5 {[%clk 0:01:00]} 34. f3 {[%clk 0:00:23]}  Qe8 {[%clk 0:00:59]} 35. Kf2 {[%clk 0:00:24]}  Qd8 {[%clk 0:00:56]} 36. R1c3 {[%clk 0:00:22]}  Bf7 {[%clk 0:00:56]} 37. Rc2 {[%clk 0:00:22]}  Rd5 {[%clk 0:00:55]} 38. Rxd5 {[%clk 0:00:22]}  Bxd5 {[%clk 0:00:55]} 39. Rc5 {[%clk 0:00:23]}  Re7 {[%clk 0:00:54]} 40. Rc3 {[%clk 0:00:23]}  Qe8 {[%clk 0:00:54]} 41. Rc5 {[%clk 0:00:23]}  Qf7 {[%clk 0:00:54]} 42. Rc3 {[%clk 0:00:23]}  Re8 {[%clk 0:00:54]} 43. Qd6 {[%clk 0:00:23]}  Qe7 {[%clk 0:00:50]} 44. Qxe7+ {[%clk 0:00:22]}  Rxe7 {[%clk 0:00:51]} 45. Kg3 {[%clk 0:00:23]}  Re8 {[%clk 0:00:50]} 46. Kf4 {[%clk 0:00:24]}  Kg7 {[%clk 0:00:50]} 47. Rc5 {[%clk 0:00:24]}  Kf7 {[%clk 0:00:50]} 48. Ne2 {[%clk 0:00:21]}  Ke7 {[%clk 0:00:51]} 49. Nc3 {[%clk 0:00:21]}  Be6 {[%clk 0:00:50]} 50. Ne2 {[%clk 0:00:19]}  Kd6 {[%clk 0:00:50]} 51. Nd4 {[%clk 0:00:20]}  Bd5 {[%clk 0:00:51]} 52. Rc3 {[%clk 0:00:20]}  Rb8 {[%clk 0:00:51]} 53. Ra3 {[%clk 0:00:14]}  Re8 {[%clk 0:00:45]} 54. Rc3 {[%clk 0:00:13]}  Re7 {[%clk 0:00:44]} 55. Rd3 {[%clk 0:00:14]}  c5 {[%clk 0:00:40]} 56. bxc5+ {[%clk 0:00:14]}  Kxc5 {[%clk 0:00:41]} 57. Rd1 {[%clk 0:00:14]}  Bc4 {[%clk 0:00:38]} 58. Rb1 {[%clk 0:00:13]}  Bb5 {[%clk 0:00:33]} 59. Rb2 {[%clk 0:00:13]}  Kc4 {[%clk 0:00:31]} 60. Rb1 {[%clk 0:00:13]}  Re8 {[%clk 0:00:31]} 61. Rc1+ {[%clk 0:00:13]}  Kb4 {[%clk 0:00:31]} 62. Rc7 {[%clk 0:00:13]}  Rg8 {[%clk 0:00:26]} 63. Rxb7 {[%clk 0:00:13]}  Kxa5 {[%clk 0:00:26]} 64. e4 {[%clk 0:00:11]}  fxe4 {[%clk 0:00:26]} 65. fxe4 {[%clk 0:00:12]}  Bd3 {[%clk 0:00:24]} 66. e5 {[%clk 0:00:11]}  Bf1 {[%clk 0:00:18]} 67. e6 {[%clk 0:00:10]}  Bxg2 {[%clk 0:00:18]} 68. Rb2 {[%clk 0:00:10]}  Bd5 {[%clk 0:00:17]} 69. Ke5 {[%clk 0:00:10]}  Bxe6 {[%clk 0:00:10]} 70. Nxe6 {[%clk 0:00:11]}  Ka4 {[%clk 0:00:09]} 71. Kf6 {[%clk 0:00:11]}  Ka3 {[%clk 0:00:09]} 72. Rb1 {[%clk 0:00:11]}  Ka2 {[%clk 0:00:08]} 73. Rb6 {[%clk 0:00:10]}  a5 {[%clk 0:00:07]} 74. Ra6 {[%clk 0:00:10]}  h4 {[%clk 0:00:07]} 75. Rxa5+ {[%clk 0:00:11]}  Kb3 {[%clk 0:00:08]} 76. Ra1 {[%clk 0:00:10]}  Rh8 {[%clk 0:00:06]} 77. Rh1 {[%clk 0:00:10]}  h3 {[%clk 0:00:07]} 78. Kxg6 {[%clk 0:00:10]}  Kc4 {[%clk 0:00:08]} 79. Kg7 {[%clk 0:00:10]}  Rh4 {[%clk 0:00:08]} 80. g6 {[%clk 0:00:10]}  Kd5 {[%clk 0:00:09]} 81. Ng5 {[%clk 0:00:11]}  Ke5 {[%clk 0:00:09]} 82. Nxh3 {[%clk 0:00:11]}  Kf5 {[%clk 0:00:07]} 83. Rf1+ {[%clk 0:00:11]}  Ke5 {[%clk 0:00:08]} 84. Ng5 {[%clk 0:00:11]} 1-0


[Site "https://www.chess.com"]

[Event "Titled Tuesday Blitz May 03 Late 2022"]
[White "Miszler, Levente"]
[Black "Gascon Del Nogal, Jose Rafael"]
[WhiteFideId "763276"]
[BlackFideId "3902463"]
[WhiteElo "1966"]
[BlackElo "2473"]
[Result "1-0"]
[Round "05"]
[TimeControl "180+1"]
[Date "2022.05.03"]
[WhiteClock "0:00:13"]
[BlackClock "0:00:01"]

1. Nf3 {[%clk 0:03:00]}  c5 {[%clk 0:02:52]} 2. c4 {[%clk 0:03:01]}  Nc6 {[%clk 0:02:44]} 3. Nc3 {[%clk 0:03:01]}  g6 {[%clk 0:02:44]} 4. d4 {[%clk 0:03:01]}  cxd4 {[%clk 0:02:43]} 5. Nxd4 {[%clk 0:03:01]}  Bg7 {[%clk 0:02:43]} 6. Nxc6 {[%clk 0:03:02]}  bxc6 {[%clk 0:02:42]} 7. g3 {[%clk 0:03:02]}  Nf6 {[%clk 0:02:37]} 8. Bg2 {[%clk 0:03:02]}  O-O {[%clk 0:02:37]} 9. O-O {[%clk 0:03:01]}  Rb8 {[%clk 0:02:37]} 10. e4 {[%clk 0:03:00]}  d6 {[%clk 0:02:29]} 11. Qc2 {[%clk 0:02:57]}  Nd7 {[%clk 0:02:24]} 12. b3 {[%clk 0:02:55]}  Nc5 {[%clk 0:02:14]} 13. Bb2 {[%clk 0:02:54]}  a5 {[%clk 0:02:03]} 14. Rad1 {[%clk 0:02:48]}  Qc7 {[%clk 0:01:59]} 15. Rfe1 {[%clk 0:02:41]}  Bg4 {[%clk 0:01:53]} 16. Rd2 {[%clk 0:02:35]}  a4 {[%clk 0:01:49]} 17. h3 {[%clk 0:02:29]}  axb3 {[%clk 0:01:47]} 18. axb3 {[%clk 0:02:30]}  Be6 {[%clk 0:01:40]} 19. Na4 {[%clk 0:02:11]}  Bxb2 {[%clk 0:01:36]} 20. Nxc5 {[%clk 0:02:07]}  dxc5 {[%clk 0:01:33]} 21. Qxb2 {[%clk 0:02:06]}  Bxc4 {[%clk 0:01:31]} 22. Re3 {[%clk 0:02:02]}  Be6 {[%clk 0:01:29]} 23. Qc2 {[%clk 0:01:59]}  Qb6 {[%clk 0:01:26]} 24. Rc3 {[%clk 0:01:58]}  Bxb3 {[%clk 0:01:24]} 25. Qc1 {[%clk 0:01:57]}  c4 {[%clk 0:01:20]} 26. Rb2 {[%clk 0:01:57]}  Rfd8 {[%clk 0:01:18]} 27. Bf1 {[%clk 0:01:57]}  Qd4 {[%clk 0:01:10]} 28. Bxc4 {[%clk 0:01:52]}  Bxc4 {[%clk 0:00:55]} 29. Rxb8 {[%clk 0:01:48]}  Rxb8 {[%clk 0:00:54]} 30. Rxc4 {[%clk 0:01:48]}  Qd3 {[%clk 0:00:52]} 31. Kg2 {[%clk 0:01:36]}  Rb1 {[%clk 0:00:46]} 32. Qc2 {[%clk 0:01:24]}  Qf1+ {[%clk 0:00:23]} 33. Kf3 {[%clk 0:01:25]}  Re1 {[%clk 0:00:22]} 34. Rxc6 {[%clk 0:01:01]}  Qh1+ {[%clk 0:00:20]} 35. Kf4 {[%clk 0:01:01]}  Kg7 {[%clk 0:00:09]} 36. Rc7 {[%clk 0:00:56]}  Rf1 {[%clk 0:00:03]} 37. Qc3+ {[%clk 0:00:48]}  Kh6 {[%clk 0:00:02]} 38. Qe3 {[%clk 0:00:43]}  Qxh3 {[%clk 0:00:02]} 39. Kf3+ {[%clk 0:00:41]}  Kg7 {[%clk 0:00:02]} 40. Qd4+ {[%clk 0:00:40]}  Kh6 {[%clk 0:00:01]} 41. Qd2+ {[%clk 0:00:34]}  Kg7 {[%clk 0:00:01]} 42. Qc3+ {[%clk 0:00:20]}  Kh6 {[%clk 0:00:01]} 43. Qd2+ {[%clk 0:00:14]}  Kh5 {[%clk 0:00:01]} 44. Rc5+ {[%clk 0:00:13]} 1-0


[Site "https://www.chess.com"]

[Event "Titled Tuesday Blitz May 03 Late 2022"]
[White "Mogranzini, Roberto"]
[Black "Ansh M Shah"]
[WhiteFideId "810894"]
[BlackFideId "25033379"]
[WhiteElo "2469"]
[BlackElo "1819"]
[Result "1/2-1/2"]
[Round "05"]
[TimeControl "180+1"]
[Date "2022.05.03"]
[WhiteClock "0:00:18"]
[BlackClock "0:00:07"]

1. e4 {[%clk 0:03:00]}  c6 {[%clk 0:02:58]} 2. Nf3 {[%clk 0:03:00]}  d5 {[%clk 0:02:59]} 3. d3 {[%clk 0:03:01]}  dxe4 {[%clk 0:02:59]} 4. Ng5 {[%clk 0:03:01]}  Nf6 {[%clk 0:02:55]} 5. Nc3 {[%clk 0:03:01]}  h6 {[%clk 0:02:50]} 6. Ngxe4 {[%clk 0:03:00]}  Nbd7 {[%clk 0:02:50]} 7. g3 {[%clk 0:02:55]}  e6 {[%clk 0:02:49]} 8. Bg2 {[%clk 0:02:55]}  Be7 {[%clk 0:02:50]} 9. O-O {[%clk 0:02:55]}  O-O {[%clk 0:02:50]} 10. Re1 {[%clk 0:02:54]}  Nd5 {[%clk 0:02:50]} 11. Bd2 {[%clk 0:02:51]}  N7f6 {[%clk 0:02:48]} 12. Nxf6+ {[%clk 0:02:48]}  Bxf6 {[%clk 0:02:48]} 13. Rb1 {[%clk 0:02:46]}  Nxc3 {[%clk 0:02:47]} 14. Bxc3 {[%clk 0:02:46]}  Bd7 {[%clk 0:02:38]} 15. Qd2 {[%clk 0:02:44]}  Rb8 {[%clk 0:02:29]} 16. b4 {[%clk 0:02:43]}  a6 {[%clk 0:02:15]} 17. a4 {[%clk 0:02:43]}  Re8 {[%clk 0:02:11]} 18. h4 {[%clk 0:02:39]}  Bxc3 {[%clk 0:02:05]} 19. Qxc3 {[%clk 0:02:39]}  Qc7 {[%clk 0:02:05]} 20. b5 {[%clk 0:02:32]}  axb5 {[%clk 0:02:05]} 21. axb5 {[%clk 0:02:32]}  Qd6 {[%clk 0:02:06]} 22. b6 {[%clk 0:02:29]}  c5 {[%clk 0:02:02]} 23. Qe5 {[%clk 0:02:19]}  Qxe5 {[%clk 0:01:56]} 24. Rxe5 {[%clk 0:02:20]}  Rec8 {[%clk 0:01:56]} 25. Ra1 {[%clk 0:02:11]}  c4 {[%clk 0:01:53]} 26. d4 {[%clk 0:01:46]}  Bc6 {[%clk 0:01:52]} 27. Rc5 {[%clk 0:01:03]}  Bxg2 {[%clk 0:01:42]} 28. Kxg2 {[%clk 0:01:04]}  Rxc5 {[%clk 0:01:32]} 29. dxc5 {[%clk 0:01:05]}  Kf8 {[%clk 0:01:23]} 30. Ra4 {[%clk 0:01:04]}  Ke8 {[%clk 0:01:21]} 31. Rxc4 {[%clk 0:01:04]}  Kd7 {[%clk 0:01:22]} 32. h5 {[%clk 0:00:58]}  Kc6 {[%clk 0:01:22]} 33. Kf3 {[%clk 0:00:52]}  Rd8 {[%clk 0:01:21]} 34. Rg4 {[%clk 0:00:48]}  Rg8 {[%clk 0:01:14]} 35. Rd4 {[%clk 0:00:47]}  Rf8 {[%clk 0:01:06]} 36. Rg4 {[%clk 0:00:43]}  g5 {[%clk 0:00:34]} 37. hxg6 {[%clk 0:00:39]}  fxg6+ {[%clk 0:00:35]} 38. Ke3 {[%clk 0:00:39]}  g5 {[%clk 0:00:35]} 39. f4 {[%clk 0:00:38]}  gxf4+ {[%clk 0:00:29]} 40. gxf4 {[%clk 0:00:39]}  Rf6 {[%clk 0:00:29]} 41. Rg7 {[%clk 0:00:38]}  Kxc5 {[%clk 0:00:24]} 42. Rxb7 {[%clk 0:00:38]}  Rg6 {[%clk 0:00:23]} 43. Ke4 {[%clk 0:00:36]}  Rg2 {[%clk 0:00:19]} 44. Ke5 {[%clk 0:00:33]}  Re2+ {[%clk 0:00:19]} 45. Kf6 {[%clk 0:00:33]}  Kc6 {[%clk 0:00:16]} 46. Rb8 {[%clk 0:00:32]}  h5 {[%clk 0:00:15]} 47. c4 {[%clk 0:00:26]}  Re4 {[%clk 0:00:14]} 48. Kg5 {[%clk 0:00:25]}  h4 {[%clk 0:00:15]} 49. c5 {[%clk 0:00:23]}  h3 {[%clk 0:00:14]} 50. Rc8+ {[%clk 0:00:23]}  Kb7 {[%clk 0:00:14]} 51. Rc7+ {[%clk 0:00:23]}  Kb8 {[%clk 0:00:14]} 52. Rh7 {[%clk 0:00:23]}  Rc4 {[%clk 0:00:13]} 53. Kf6 {[%clk 0:00:22]}  Rxc5 {[%clk 0:00:11]} 54. Kxe6 {[%clk 0:00:22]}  Rc3 {[%clk 0:00:12]} 55. f5 {[%clk 0:00:22]}  Re3+ {[%clk 0:00:12]} 56. Kf6 {[%clk 0:00:22]}  Rg3 {[%clk 0:00:07]} 57. Kf7 {[%clk 0:00:21]}  Rf3 {[%clk 0:00:06]} 58. f6 {[%clk 0:00:21]}  Kb7 {[%clk 0:00:07]} 59. Kf8+ {[%clk 0:00:21]}  Kxb6 {[%clk 0:00:07]} 60. f7 {[%clk 0:00:22]}  Kc6 {[%clk 0:00:05]} 61. Kg8 {[%clk 0:00:22]}  Rg3+ {[%clk 0:00:06]} 62. Kf8 {[%clk 0:00:22]}  Kd6 {[%clk 0:00:04]} 63. Rh4 {[%clk 0:00:22]}  Ke6 {[%clk 0:00:04]} 64. Re4+ {[%clk 0:00:22]}  Kf5 {[%clk 0:00:04]} 65. Re2 {[%clk 0:00:22]}  Rf3 {[%clk 0:00:03]} 66. Ke8 {[%clk 0:00:22]}  Kg4 {[%clk 0:00:03]} 67. f8=Q {[%clk 0:00:18]}  Rxf8+ {[%clk 0:00:04]} 68. Kxf8 {[%clk 0:00:19]}  Kg3 {[%clk 0:00:05]} 69. Re3+ {[%clk 0:00:18]}  Kg2 {[%clk 0:00:05]} 70. Re2+ {[%clk 0:00:17]}  Kg3 {[%clk 0:00:06]} 71. Re3+ {[%clk 0:00:17]}  Kg2 {[%clk 0:00:06]} 72. Re2+ {[%clk 0:00:18]}  Kg3 {[%clk 0:00:07]} 1/2-1/2


[Site "https://www.chess.com"]

[Event "Titled Tuesday Blitz May 03 Late 2022"]
[White "Mohammadian, Mohammad"]
[Black "Weber, Samuel"]
[WhiteFideId "12566055"]
[BlackFideId "12924008"]
[WhiteElo "1544"]
[BlackElo "2215"]
[Result "0-1"]
[Round "05"]
[TimeControl "180+1"]
[Date "2022.05.03"]
[WhiteClock "0:00:12"]
[BlackClock "0:01:16"]

1. e4 {[%clk 0:03:00]}  e5 {[%clk 0:02:48]} 2. Nf3 {[%clk 0:02:59]}  Nc6 {[%clk 0:02:47]} 3. Bb5 {[%clk 0:02:58]}  a6 {[%clk 0:02:47]} 4. Ba4 {[%clk 0:02:57]}  Nf6 {[%clk 0:02:47]} 5. O-O {[%clk 0:02:56]}  Nxe4 {[%clk 0:02:35]} 6. Re1 {[%clk 0:02:55]}  Nc5 {[%clk 0:02:20]} 7. Bxc6 {[%clk 0:02:50]}  dxc6 {[%clk 0:02:20]} 8. Nxe5 {[%clk 0:02:50]}  Be7 {[%clk 0:02:17]} 9. d4 {[%clk 0:02:45]}  Ne6 {[%clk 0:02:17]} 10. c3 {[%clk 0:02:44]}  O-O {[%clk 0:02:17]} 11. Bf4 {[%clk 0:02:43]}  Nxf4 {[%clk 0:02:17]} 12. Nd2 {[%clk 0:02:36]}  Bd6 {[%clk 0:02:15]} 13. Ndf3 {[%clk 0:02:35]}  Be6 {[%clk 0:02:14]} 14. Qd2 {[%clk 0:02:34]}  Nd5 {[%clk 0:02:13]} 15. c4 {[%clk 0:02:22]}  Bb4 {[%clk 0:02:13]} 16. Qd3 {[%clk 0:02:06]}  Bxe1 {[%clk 0:02:10]} 17. cxd5 {[%clk 0:02:06]}  Bxf2+ {[%clk 0:02:10]} 18. Kxf2 {[%clk 0:02:03]}  Qxd5 {[%clk 0:02:11]} 19. Kg1 {[%clk 0:01:55]}  Rad8 {[%clk 0:01:37]} 20. Rd1 {[%clk 0:01:45]}  f6 {[%clk 0:01:37]} 21. Kh1 {[%clk 0:01:16]}  fxe5 {[%clk 0:01:30]} 22. Ng5 {[%clk 0:01:16]}  Bf5 {[%clk 0:01:27]} 23. Qg3 {[%clk 0:01:11]}  exd4 {[%clk 0:01:26]} 24. Rf1 {[%clk 0:00:58]}  d3 {[%clk 0:01:22]} 25. Qxc7 {[%clk 0:00:43]}  d2 {[%clk 0:01:20]} 26. Nf3 {[%clk 0:00:20]}  d1=Q {[%clk 0:01:18]} 27. Rg1 {[%clk 0:00:18]}  Q5xf3 {[%clk 0:01:15]} 28. gxf3 {[%clk 0:00:16]}  Qxf3+ {[%clk 0:01:15]} 29. Rg2 {[%clk 0:00:12]}  Rd1# {[%clk 0:01:16]} 0-1


[Site "https://www.chess.com"]

[Event "Titled Tuesday Blitz May 03 Late 2022"]
[White "Moral Garcia, Serafin"]
[Black "Gombocz, Ferenc Jr."]
[WhiteFideId "2201925"]
[BlackFideId "775029"]
[WhiteElo "2228"]
[BlackElo "1913"]
[Result "1-0"]
[Round "05"]
[TimeControl "180+1"]
[Date "2022.05.03"]
[WhiteClock "0:00:12"]
[BlackClock "0:00:57"]

1. e4 {[%clk 0:03:00]}  e5 {[%clk 0:02:59]} 2. Nf3 {[%clk 0:03:00]}  Nc6 {[%clk 0:02:59]} 3. Bb5 {[%clk 0:03:00]}  g6 {[%clk 0:02:59]} 4. c3 {[%clk 0:02:58]}  a6 {[%clk 0:02:58]} 5. Ba4 {[%clk 0:02:56]}  d6 {[%clk 0:02:58]} 6. d4 {[%clk 0:02:56]}  Bd7 {[%clk 0:02:58]} 7. O-O {[%clk 0:02:44]}  Bg7 {[%clk 0:02:57]} 8. d5 {[%clk 0:02:42]}  Nce7 {[%clk 0:02:57]} 9. c4 {[%clk 0:02:41]}  b5 {[%clk 0:02:56]} 10. cxb5 {[%clk 0:02:37]}  axb5 {[%clk 0:02:57]} 11. Bb3 {[%clk 0:02:37]}  f5 {[%clk 0:02:56]} 12. Nc3 {[%clk 0:02:33]}  Nf6 {[%clk 0:02:56]} 13. exf5 {[%clk 0:02:24]}  Nxf5 {[%clk 0:02:51]} 14. Ng5 {[%clk 0:02:23]}  O-O {[%clk 0:02:49]} 15. Ne6 {[%clk 0:02:17]}  Bxe6 {[%clk 0:02:47]} 16. dxe6 {[%clk 0:02:17]}  Qe7 {[%clk 0:02:47]} 17. Nxb5 {[%clk 0:02:13]}  c6 {[%clk 0:02:35]} 18. Nc3 {[%clk 0:02:07]}  d5 {[%clk 0:02:35]} 19. Re1 {[%clk 0:02:02]}  Nd4 {[%clk 0:02:21]} 20. Bg5 {[%clk 0:01:45]}  Nxb3 {[%clk 0:02:18]} 21. Qxb3 {[%clk 0:01:45]}  Qxe6 {[%clk 0:02:18]} 22. Rac1 {[%clk 0:01:45]}  Rac8 {[%clk 0:02:14]} 23. Na4 {[%clk 0:01:31]}  Nd7 {[%clk 0:01:54]} 24. Qb7 {[%clk 0:01:13]}  e4 {[%clk 0:01:32]} 25. Bd2 {[%clk 0:00:52]}  Ne5 {[%clk 0:01:20]} 26. Nc5 {[%clk 0:00:42]}  Qf5 {[%clk 0:01:17]} 27. Be3 {[%clk 0:00:23]}  Rb8 {[%clk 0:01:16]} 28. Qc7 {[%clk 0:00:19]}  Rxb2 {[%clk 0:01:14]} 29. a4 {[%clk 0:00:19]}  Ng4 {[%clk 0:01:09]} 30. Qd7 {[%clk 0:00:17]}  Qxd7 {[%clk 0:01:00]} 31. Nxd7 {[%clk 0:00:17]}  Rf7 {[%clk 0:01:00]} 32. Nc5 {[%clk 0:00:15]}  d4 {[%clk 0:00:59]} 33. Bg5 {[%clk 0:00:14]}  Rfxf2 {[%clk 0:00:58]} 34. Nxe4 {[%clk 0:00:14]}  Rxg2+ {[%clk 0:00:59]} 35. Kh1 {[%clk 0:00:14]}  Rxh2+ {[%clk 0:00:59]} 36. Kg1 {[%clk 0:00:15]}  Rbg2+ {[%clk 0:00:59]} 37. Kf1 {[%clk 0:00:15]}  d3 {[%clk 0:00:58]} 38. Rxc6 {[%clk 0:00:15]}  Bd4 {[%clk 0:00:58]} 39. Rc8+ {[%clk 0:00:12]}  Kf7 {[%clk 0:00:58]} 40. Nd6+ {[%clk 0:00:12]}  Kg7 {[%clk 0:00:57]} 41. Re7# {[%clk 0:00:12]} 1-0


[Site "https://www.chess.com"]

[Event "Titled Tuesday Blitz May 03 Late 2022"]
[White "Moskalenko, Alexander"]
[Black "Skliarov, Viktor"]
[WhiteFideId "4155351"]
[BlackFideId "14106736"]
[WhiteElo "2434"]
[BlackElo "2229"]
[Result "1/2-1/2"]
[Round "05"]
[TimeControl "180+1"]
[Date "2022.05.03"]
[WhiteClock "0:00:12"]
[BlackClock "0:00:07"]

1. c4 {[%clk 0:03:00]}  e5 {[%clk 0:02:59]} 2. Nc3 {[%clk 0:02:59]}  Bb4 {[%clk 0:02:59]} 3. Nd5 {[%clk 0:02:57]}  Ba5 {[%clk 0:02:59]} 4. b4 {[%clk 0:02:52]}  c6 {[%clk 0:03:00]} 5. bxa5 {[%clk 0:02:51]}  cxd5 {[%clk 0:03:01]} 6. cxd5 {[%clk 0:02:52]}  Qxa5 {[%clk 0:03:00]} 7. e4 {[%clk 0:02:52]}  Nf6 {[%clk 0:03:00]} 8. f3 {[%clk 0:02:52]}  O-O {[%clk 0:02:57]} 9. Bb2 {[%clk 0:02:51]}  d6 {[%clk 0:02:57]} 10. Ne2 {[%clk 0:02:51]}  b6 {[%clk 0:02:47]} 11. a4 {[%clk 0:02:47]}  Ba6 {[%clk 0:02:35]} 12. Bc3 {[%clk 0:02:45]}  Qc5 {[%clk 0:02:35]} 13. Qb3 {[%clk 0:02:14]}  Nbd7 {[%clk 0:02:09]} 14. d4 {[%clk 0:02:06]}  exd4 {[%clk 0:01:41]} 15. Bxd4 {[%clk 0:02:07]}  Qc7 {[%clk 0:01:19]} 16. Nc3 {[%clk 0:01:52]}  Bxf1 {[%clk 0:01:17]} 17. Rxf1 {[%clk 0:01:53]}  Nc5 {[%clk 0:01:16]} 18. Qc2 {[%clk 0:01:53]}  Qe7 {[%clk 0:01:11]} 19. Kf2 {[%clk 0:01:51]}  Rac8 {[%clk 0:01:06]} 20. Kg1 {[%clk 0:01:51]}  Rfe8 {[%clk 0:00:50]} 21. a5 {[%clk 0:01:36]}  b5 {[%clk 0:00:44]} 22. Qb1 {[%clk 0:01:27]}  a6 {[%clk 0:00:40]} 23. Na2 {[%clk 0:01:27]}  Na4 {[%clk 0:00:15]} 24. Nb4 {[%clk 0:01:26]}  Rc4 {[%clk 0:00:16]} 25. Nc6 {[%clk 0:01:17]}  Qb7 {[%clk 0:00:13]} 26. Bxf6 {[%clk 0:01:03]}  gxf6 {[%clk 0:00:14]} 27. Rc1 {[%clk 0:01:03]}  Nc5 {[%clk 0:00:05]} 28. Rxc4 {[%clk 0:00:42]}  bxc4 {[%clk 0:00:06]} 29. Qxb7 {[%clk 0:00:42]}  Nxb7 {[%clk 0:00:07]} 30. Rc1 {[%clk 0:00:41]}  f5 {[%clk 0:00:07]} 31. exf5 {[%clk 0:00:38]}  Nc5 {[%clk 0:00:05]} 32. Rxc4 {[%clk 0:00:37]}  Re2 {[%clk 0:00:05]} 33. f6 {[%clk 0:00:25]}  h5 {[%clk 0:00:05]} 34. Rh4 {[%clk 0:00:18]}  Nd3 {[%clk 0:00:05]} 35. g3 {[%clk 0:00:17]}  Re1+ {[%clk 0:00:05]} 36. Kg2 {[%clk 0:00:18]}  Re2+ {[%clk 0:00:06]} 37. Kf1 {[%clk 0:00:18]}  Re1+ {[%clk 0:00:06]} 38. Kg2 {[%clk 0:00:18]}  Re2+ {[%clk 0:00:07]} 39. Kg1 {[%clk 0:00:12]}  Re1+ {[%clk 0:00:07]} 40. Kg2 {[%clk 0:00:12]} 1/2-1/2


[Site "https://www.chess.com"]

[Event "Titled Tuesday Blitz May 03 Late 2022"]
[White "Ovezdurdyyeva, Jemal"]
[Black "Petrovic, Aleksa"]
[WhiteFideId "14001888"]
[BlackFideId "967629"]
[WhiteElo "1946"]
[BlackElo "2198"]
[Result "0-1"]
[Round "05"]
[TimeControl "180+1"]
[Date "2022.05.03"]
[WhiteClock "0:00:05"]
[BlackClock "0:00:04"]

1. e4 {[%clk 0:03:00]}  e6 {[%clk 0:02:54]} 2. d4 {[%clk 0:03:00]}  d5 {[%clk 0:02:54]} 3. Nd2 {[%clk 0:03:01]}  Be7 {[%clk 0:02:53]} 4. e5 {[%clk 0:02:58]}  c5 {[%clk 0:02:52]} 5. c3 {[%clk 0:02:56]}  Nc6 {[%clk 0:02:49]} 6. Ngf3 {[%clk 0:02:51]}  g5 {[%clk 0:02:48]} 7. Nb3 {[%clk 0:02:46]}  g4 {[%clk 0:02:45]} 8. Ng1 {[%clk 0:02:41]}  cxd4 {[%clk 0:02:27]} 9. cxd4 {[%clk 0:02:40]}  h5 {[%clk 0:02:18]} 10. h3 {[%clk 0:02:37]}  gxh3 {[%clk 0:02:07]} 11. Rxh3 {[%clk 0:02:38]}  h4 {[%clk 0:02:06]} 12. Nf3 {[%clk 0:02:24]}  a5 {[%clk 0:02:01]} 13. a4 {[%clk 0:02:21]}  Qb6 {[%clk 0:02:00]} 14. Bb5 {[%clk 0:02:15]}  Bd7 {[%clk 0:01:58]} 15. Bg5 {[%clk 0:02:06]}  Rc8 {[%clk 0:01:44]} 16. Bxh4 {[%clk 0:01:57]}  Bb4+ {[%clk 0:01:25]} 17. Kf1 {[%clk 0:01:55]}  Nge7 {[%clk 0:01:22]} 18. Bf6 {[%clk 0:01:06]}  Rxh3 {[%clk 0:01:21]} 19. gxh3 {[%clk 0:01:07]}  Nf5 {[%clk 0:01:00]} 20. Rc1 {[%clk 0:01:04]}  Rc7 {[%clk 0:00:45]} 21. Nc5 {[%clk 0:00:46]}  Bxc5 {[%clk 0:00:36]} 22. dxc5 {[%clk 0:00:46]}  Qa7 {[%clk 0:00:35]} 23. Ng5 {[%clk 0:00:37]}  Nce7 {[%clk 0:00:35]} 24. Qh5 {[%clk 0:00:34]}  Ng6 {[%clk 0:00:23]} 25. Nxe6 {[%clk 0:00:25]}  Bxb5+ {[%clk 0:00:18]} 26. axb5 {[%clk 0:00:25]}  fxe6 {[%clk 0:00:17]} 27. b6 {[%clk 0:00:23]}  Qa6+ {[%clk 0:00:16]} 28. Kg1 {[%clk 0:00:23]}  Rf7 {[%clk 0:00:07]} 29. Qxg6 {[%clk 0:00:18]}  Kf8 {[%clk 0:00:06]} 30. Qh5 {[%clk 0:00:15]}  Ke8 {[%clk 0:00:04]} 31. Qh8+ {[%clk 0:00:12]}  Rf8 {[%clk 0:00:03]} 32. Qh7 {[%clk 0:00:12]}  Qe2 {[%clk 0:00:01]} 33. Qxb7 {[%clk 0:00:09]}  Rg8+ {[%clk 0:00:01]} 34. Bg7 {[%clk 0:00:06]}  Rxg7+ {[%clk 0:00:01]} 35. Qxg7 {[%clk 0:00:06]}  Nxg7 {[%clk 0:00:02]} 36. b7 {[%clk 0:00:07]}  Qxe5 {[%clk 0:00:01]} 37. c6 {[%clk 0:00:07]}  Kd8 {[%clk 0:00:02]} 38. c7+ {[%clk 0:00:06]}  Qxc7 {[%clk 0:00:02]} 39. Rxc7 {[%clk 0:00:04]}  Kxc7 {[%clk 0:00:03]} 40. Kg2 {[%clk 0:00:04]}  Kxb7 {[%clk 0:00:03]} 41. Kf3 {[%clk 0:00:05]}  Kc6 {[%clk 0:00:04]} 42. Kf4 {[%clk 0:00:06]}  d4 {[%clk 0:00:04]} 43. Ke4 {[%clk 0:00:06]}  Kc5 {[%clk 0:00:04]} 44. f4 {[%clk 0:00:05]}  Kc4 {[%clk 0:00:04]} 0-1


[Site "https://www.chess.com"]